bitfinex-derivatives/quotes_ETHF0:USTF0_20250403
["timestamp","ask_amount","ask_price","bid_price","bid_amount"]
[1743695179808,0.00842933,1778.6,1778.5,7.70279393]
[1743695180413,1.13321933,1778.6,1778.5,7.70279393]
[1743695180710,0.00842933,1778.6,1778.5,7.70279393]
[1743695181417,1.1247,1778.8,1778.7,1.12468]
[1743695181607,1.1247,1778.8,1778.7,5.56342393]
[1743695182118,1.1247,1778.8,1778.7,5.56347393]
[1743695182414,1.1247,1778.8,1778.7,4.43874393]
[1743695182615,1.1247,1778.8,1778.7,5.56347393]
[1743695182809,1.1247,1778.8,1778.7,5.96364393]
[1743695183014,1.1247,1778.8,1778.7,5.27161983]
[1743695183710,1.1247,1778.8,1778.7,3.2078]
[1743695184207,1.12479,1778.6,1778.5,3.2078]
[1743695184520,2.65386,1778.7,1778.6,1.12479]
[1743695184714,2.65386,1778.7,1778.6,3.18872902]
[1743695184908,1.13303933,1778.9,1778.8,1.12466]
[1743695185108,0.00842933,1778.9,1778.8,1.66352089]
[1743695185320,0.00842933,1778.9,1778.8,3.87779741]
[1743695185918,1.13302933,1778.9,1778.8,3.87779741]
[1743695186109,1.13302933,1778.9,1778.8,3.18842089]
[1743695186819,0.00842933,1778.9,1778.8,44.67645882]
[1743695187020,1.13302933,1778.9,1778.8,44.67645882]
[1743695187415,0.00842933,1778.9,1778.8,44.67645882]
[1743695187720,1.13302933,1778.9,1778.8,44.67645882]
[1743695188220,0.00842933,1778.9,1778.8,44.67645882]
[1743695188419,1.12447,1779.2,1779.1,1.12443]
[1743695188718,1.12447,1779.1,1779.0,4.33228]
[1743695188919,1.12447,1779.1,1779.0,5.74058]
[1743695189118,1.12447,1779.1,1779.0,1.4083]
[1743695189720,2.66418933,1779.2,1779.1,1.12447]
[1743695189923,1.53972933,1779.2,1779.1,1.12447]
[1743695190214,0.00842933,1779.2,1779.1,3.07048419]
[1743695190523,1.13283933,1779.2,1779.1,3.94257]
[1743695190824,0.00842933,1779.2,1779.1,4.47997834]
[1743695191323,1.12419,1779.6,1779.5,1.12416]
[1743695191512,1.12419,1779.6,1779.5,4.33196]
[1743695191920,2.242,1779.7,1779.6,1.12416]
[1743695192120,2.242,1779.7,1779.6,2.57436]
[1743695192322,3.36614,1779.7,1779.6,1.4502]
[1743695192526,3.36614,1779.7,1779.6,2.57436]
[1743695192820,1.12414,1779.7,1779.6,2.57436]
[1743695193219,1.12414,1779.7,1779.6,1.4502]
[1743695193520,1.12414,1779.7,1779.6,2.57436]
[1743695194317,1.12409,1779.7,1779.6,2.57436]
[1743695195319,0.00842933,1779.8,1779.7,1.12409]
[1743695195514,0.00842933,1779.8,1779.7,5.75819]
[1743695195713,0.00842933,1779.8,1779.7,8.25819]
[1743695195917,0.00842933,1779.8,1779.7,46.55819]
[1743695196220,1.13245933,1779.8,1779.7,44.0078]
[1743695196424,1.12416,1779.6,1779.5,3.2078]
[1743695196718,1.12416,1779.6,1779.5,4.33202]
[1743695197119,2.53586,1779.6,1779.5,3.2078]
[1743695197716,1.4117,1779.6,1779.5,4.33202]
[1743695197917,2.53586,1779.6,1779.5,4.33202]
[1743695198226,1.13246933,1779.8,1779.7,1.12409]
[1743695198524,0.00842933,1779.8,1779.7,4.33189]
[1743695198726,0.00842933,1779.8,1779.7,5.72639]
[1743695199519,1.13245933,1779.8,1779.7,5.72639]
[1743695200029,1.13245933,1779.8,1779.7,4.6023]
[1743695200224,1.13245933,1779.8,1779.7,3.2078]
[1743695200721,1.13245933,1779.8,1779.7,4.33189]
[1743695201122,1.13245933,1779.8,1779.7,3.2078]
[1743695201626,2.58685933,1779.8,1779.7,3.2078]
[1743695203016,2.81053,1779.6,1779.2,41.92436]
[1743695203328,1.12435,1779.3,1779.2,41.92441]
[1743695203523,1.12435,1779.3,1779.2,40.8]
[1743695205323,1.12435,1779.3,1778.9,3.2078]
[1743695205324,4.244,1779.3,1778.9,3.2078]
[1743695205629,1.12454,1779.0,1778.9,3.2078]
[1743695205829,1.12454,1779.0,1778.9,44.0078]
[1743695206629,2.50614,1779.0,1778.9,44.0078]
[1743695206923,1.12466,1778.8,1778.7,3.21622933]
[1743695207128,1.12466,1778.8,1778.7,3.75430073]
[1743695207323,1.12466,1778.8,1778.7,3.21622933]
[1743695207529,1.12466,1778.8,1778.7,40.80842933]
[1743695207929,1.12498,1778.3,1778.2,1.125]
[1743695208127,1.12498,1778.3,1778.2,3.74624504]
[1743695208331,1.12498,1778.3,1778.2,3.2078]
[1743695208630,1.12498,1778.3,1778.2,40.8]
[1743695208831,2.50708,1778.3,1778.2,40.8]
[1743695210427,2.50708,1778.3,1778.2,45.13284]
[1743695210620,4.95072933,1778.4,1778.2,45.13284]
[1743695210621,4.25142933,1778.4,1778.2,45.4689]
[1743695210830,1.12498,1778.3,1778.2,46.59389]
[1743695211030,1.12498,1778.3,1778.2,45.4689]
[1743695211233,2.56658,1778.3,1778.2,45.4689]
[1743695211729,2.56658,1778.3,1778.2,40.8]
[1743695211938,2.56658,1778.3,1778.2,44.0078]
[1743695212124,4.07768,1778.3,1778.2,40.8]
[1743695212637,1.12504,1778.2,1778.1,0.00842933]
[1743695212938,2.65304,1778.2,1778.1,0.00842933]
[1743695213141,2.65304,1778.2,1778.1,40.80842933]
[1743695213533,2.65304,1778.2,1778.1,0.00842933]
[1743695213932,2.65304,1778.2,1778.1,40.80842933]
[1743695215136,1.1254,1777.7,1777.6,3.2078]
[1743695215540,1.1254,1777.7,1777.6,44.0078]
[1743695215942,2.6533,1777.7,1777.6,44.0078]
[1743695217437,2.6533,1777.7,1777.6,40.8]
[1743695218039,2.6533,1777.7,1777.5,0.00842933]
[1743695218040,1.12542,1777.6,1777.5,0.00842933]
[1743695218243,1.17736176,1777.5,1777.4,3.2078]
[1743695218634,2.65339,1777.5,1777.4,3.15592824]
[1743695218830,2.65339,1777.5,1777.4,43.95592824]
[1743695220548,2.65339,1777.5,1777.3,0.00842933]
[1743695220549,1.12555,1777.4,1777.3,0.00842933]
[1743695220750,3.29835,1777.4,1777.3,0.00842933]
[1743695221744,2.55075,1777.4,1777.3,1.47112933]
[1743695221945,5.6692,1777.4,1777.3,5.80453933]
[1743695222142,6.79475,1777.4,1777.3,4.67892933]
[1743695222545,6.79475,1777.4,1777.3,44.01622933]
[1743695222735,6.79475,1777.4,1777.3,40.80842933]
[1743695223239,6.79475,1777.4,1777.3,0.00842933]
[1743695223935,10.00255,1777.4,1777.3,0.00842933]
[1743695224139,2.81422,1777.2,1776.8,3.9226]
[1743695224343,1.12587,1776.9,1776.8,3.9226]
[1743695224542,1.12585,1777.0,1776.8,3.2078]
[1743695224744,5.36978,1777.1,1776.8,3.2078]
[1743695225050,5.36978,1777.1,1777.0,4.3336]
[1743695225252,1.1258,1777.0,1776.9,3.28567]
[1743695225448,0.00842933,1777.2,1776.9,2.16822933]
[1743695225653,0.00842933,1777.2,1777.1,4.33354]
[1743695226050,0.00842933,1777.2,1776.9,5.37602933]
[1743695226262,1.12578,1777.1,1777.0,1.12579]
[1743695226560,1.12578,1777.1,1777.0,2.6283]
[1743695227457,1.12578,1777.1,1777.0,1.5025]
[1743695227656,1.12578,1777.1,1777.0,2.6283]
[1743695227855,1.13416933,1777.2,1777.1,1.12574]
[1743695228059,1.13416933,1777.2,1777.1,4.7422]
[1743695228654,1.13410933,1777.2,1777.1,5.86794]
[1743695229055,1.13410933,1777.2,1777.1,4.7422]
[1743695229561,1.13410933,1777.2,1777.1,3.2078]
[1743695229754,1.87700933,1777.2,1777.1,3.2078]
[1743695230062,2.62590933,1777.2,1777.1,3.2078]
[1743695230561,1.1258,1777.0,1776.9,5.05687933]
[1743695230756,1.1258,1777.0,1776.9,3.93102933]
[1743695231166,1.13414933,1777.2,1777.1,1.12574]
[1743695231366,1.13414933,1777.2,1777.1,4.33354]
[1743695231668,1.12574,1777.1,1777.0,2.58135]
[1743695231962,1.12574,1777.1,1777.0,2.58136]
[1743695232265,1.12574,1777.1,1777.0,43.38136]
[1743695233059,1.12574,1777.1,1777.0,42.2556]
[1743695233269,2.66536933,1777.2,1777.0,42.2556]
[1743695233564,2.66536933,1777.2,1777.1,1.4556]
[1743695234765,1.13416933,1777.2,1777.1,1.4556]
[1743695236463,1.12574,1777.1,1777.0,40.8]
[1743695236658,2.66114,1777.1,1777.0,40.8]
[1743695236859,2.66114,1777.1,1777.0,42.288]
[1743695237060,2.66114,1777.1,1777.0,43.4138]
[1743695237362,6.742,1777.1,1776.9,0.00842933]
[1743695237666,3.2059,1777.0,1776.9,0.00842933]
[1743695240860,1.1258,1777.0,1776.9,3.21622933]
[1743695241061,1.1258,1777.1,1776.9,3.75612099]
[1743695241258,1.89792933,1777.2,1777.0,1.94693485]
[1743695241561,1.1258,1777.0,1776.9,3.21622933]
[1743695241767,1.1258,1777.0,1776.9,42.03749313]
[1743695242067,1.1258,1777.0,1776.9,0.54847126]
[1743695242268,6.0665,1777.0,1776.9,0.00842933]
[1743695242659,6.0665,1777.0,1776.9,0.54890886]
[1743695242967,6.0665,1777.0,1776.9,0.54891795]
[1743695243165,8.5665,1777.0,1776.9,0.00842933]
[1743695244959,11.7743,1777.0,1776.9,0.00842933]
[1743695247467,8.5665,1777.0,1776.9,0.00842933]
[1743695247664,8.5665,1777.0,1776.9,0.5504881]
[1743695247863,8.5665,1777.0,1776.9,0.55060912]
[1743695248163,10.0188,1777.0,1776.9,0.55079922]
[1743695248370,7.5188,1777.0,1776.9,0.55079922]
[1743695249072,7.5188,1777.0,1776.9,1.24172754]
[1743695249370,7.5188,1777.0,1776.9,1.24175225]
[1743695250164,7.5188,1777.0,1776.9,0.55079922]
[1743695250671,7.5188,1777.0,1776.9,1.24185355]
[1743695251174,7.5178,1777.0,1776.9,0.55079922]
[1743695251671,7.5178,1777.0,1776.9,1.24183818]
[1743695252460,7.5178,1777.0,1776.9,0.55079922]
[1743695252865,7.5178,1777.0,1776.9,1.24208748]
[1743695253166,7.5178,1777.0,1776.9,0.55079922]
[1743695253567,7.5178,1777.0,1776.9,0.55145598]
[1743695253774,7.5178,1777.0,1776.9,1.24273977]
[1743695254268,7.5178,1777.0,1776.9,0.55145598]
[1743695254475,10.0178,1777.0,1776.9,0.55145598]
[1743695254771,1.12606,1776.6,1776.5,45.4978]
[1743695254966,1.12606,1776.6,1776.5,46.18912415]
[1743695255163,1.12606,1776.6,1776.5,0.69132415]
[1743695255473,1.12606,1776.6,1776.3,3.9574]
[1743695255474,1.12618,1776.4,1776.3,3.9574]
[1743695255658,1.12618,1776.4,1776.3,4.64529353]
[1743695255863,5.36618,1776.4,1776.3,1.43749353]
[1743695256160,1.12625,1776.3,1776.2,0.00561958]
[1743695256471,3.34595,1776.3,1776.2,0.00561958]
[1743695256667,5.84595,1776.3,1776.2,0.00561958]
[1743695257373,3.34595,1776.3,1776.2,0.00561958]
[1743695258273,5.84595,1776.3,1776.2,0.00561958]
[1743695258473,4.7197,1776.3,1775.8,3.0202]
[1743695258671,1.1265,1775.9,1775.8,3.0202]
[1743695258971,1.1265,1775.9,1775.8,44.50691031]
[1743695258972,5.3665,1775.9,1775.8,44.50691031]
[1743695259369,5.3665,1775.9,1775.8,3.0202]
[1743695259675,5.7678,1775.9,1775.5,3.2078]
[1743695259972,1.12663,1775.7,1775.6,45.44350072]
[1743695260171,1.12663,1775.7,1775.6,42.88715072]
[1743695260573,1.12663,1775.7,1775.6,1.4008]
[1743695262068,1.12663,1775.7,1775.6,0.7031]
[1743695262371,1.12663,1775.7,1775.3,3.9718]
[1743695262372,1.12682,1775.4,1775.3,3.9718]
[1743695263075,1.12682,1775.4,1775.3,44.7718]
[1743695263469,5.3668,1775.5,1775.3,45.89868]
[1743695263677,5.3668,1775.5,1775.4,1.83582]
[1743695263970,5.3668,1775.5,1775.4,0.709]
[1743695264777,1.1268,1775.5,1775.4,1.83582]
[1743695265277,4.239,1775.6,1775.4,1.83582]
[1743695265278,5.36572,1775.6,1775.5,1.12675]
[1743695265482,5.36572,1775.6,1775.5,4.33455]
[1743695265776,1.12672,1775.6,1775.5,4.33455]
[1743695266176,1.12672,1775.6,1775.5,3.2078]
[1743695266379,1.12672,1775.6,1775.5,4.33455]
[1743695268077,1.12672,1775.6,1775.5,3.2078]
[1743695268378,1.12672,1775.6,1775.5,4.33455]
[1743695272176,0.00842933,1776.0,1775.5,6.83455]
[1743695272484,1.12659,1775.9,1775.8,1.12652]
[1743695272781,1.12659,1775.9,1775.8,2.55392]
[1743695272977,1.12659,1775.9,1775.8,1.4274]
[1743695273574,1.12659,1775.9,1775.3,46.624]
[1743695273575,1.12669,1775.6,1775.5,4.33452]
[1743695274184,1.12669,1775.6,1775.5,3.2078]
[1743695274575,1.12669,1775.6,1775.5,4.33455]
[1743695276879,5.36467,1775.7,1775.6,1.12669]
[1743695277281,5.36467,1775.7,1775.6,2.55919]
[1743695277883,1.12662,1775.8,1775.7,1.12658]
[1743695278083,1.12662,1775.8,1775.7,5.76688]
[1743695278280,2.65650933,1776.0,1775.9,1.1265]
[1743695278584,1.13490933,1776.0,1775.9,3.2078]
[1743695278777,1.1265,1775.9,1775.8,2.8758]
[1743695278973,7.05437,1775.9,1775.5,0.68424571]
[1743695279179,1.12669,1775.6,1775.5,2.55924]
[1743695279383,1.12669,1775.6,1775.5,1.4325]
[1743695280980,1.12669,1775.6,1775.5,2.55925]
[1743695281486,1.12669,1775.6,1775.5,1.4325]
[1743695281880,1.12669,1775.6,1775.5,2.55925]
[1743695282786,1.12669,1775.6,1775.5,1.4325]
[1743695282981,1.12675,1775.5,1775.4,4.6728]
[1743695283280,5.36372,1775.6,1775.5,1.12675]
[1743695283478,5.36372,1775.6,1775.5,3.25093401]
[1743695283479,4.237,1775.6,1775.5,3.25093401]
[1743695283680,1.12668,1775.7,1775.6,1.12669]
[1743695283886,4.237,1775.8,1775.7,1.12656]
[1743695283887,1.12661,1775.8,1775.7,1.12656]
[1743695284087,0.00842933,1776.0,1775.9,1.1265]
[1743695284280,1.13486933,1776.0,1775.9,1.81282804]
[1743695284486,1.13486933,1776.0,1775.9,5.02062804]
[1743695284678,1.13486933,1776.0,1775.9,5.02143272]
[1743695284984,1.13486933,1776.0,1775.9,6.45913272]
[1743695285182,0.00842933,1776.0,1775.9,8.95913272]
[1743695286279,7.05249,1776.4,1775.9,8.95913272]
[1743695286280,0.697,1776.6,1775.9,7.83263272]
[1743695286474,0.697,1776.6,1775.8,7.3076]
[1743695286475,1.12637,1776.2,1776.1,3.2078]
[1743695286984,1.12637,1776.1,1776.0,1.3841]
[1743695287191,2.54897,1776.1,1776.0,2.07148909]
[1743695287786,2.54897,1776.1,1776.0,3.19792909]
[1743695288189,0.00842933,1776.2,1776.1,1.12637]
[1743695288489,0.00842933,1776.2,1776.1,6.40551072]
[1743695288688,1.13473933,1776.2,1776.1,5.27914072]
[1743695288877,1.13473933,1776.2,1776.1,2.07134072]
[1743695289081,1.13473933,1776.2,1776.1,6.40551072]
[1743695289285,1.13473933,1776.2,1776.1,2.07134072]
[1743695289482,2.59473933,1776.2,1776.1,2.07088967]
[1743695289989,2.59473933,1776.2,1776.1,2.07088068]
[1743695290191,2.59473933,1776.2,1776.1,5.27868068]
[1743695290384,2.59473933,1776.2,1776.1,5.2786298]
[1743695290586,2.59473933,1776.2,1776.1,6.40490361]
[1743695291090,2.59473933,1776.2,1776.1,5.27853361]
[1743695291490,2.59473933,1776.2,1776.1,5.71827]
[1743695291688,2.59473933,1776.2,1776.1,4.5919]
[1743695292089,1.12637,1776.1,1776.0,1.12639]
[1743695292295,1.12644,1776.0,1775.9,5.78334]
[1743695292484,2.58894,1776.1,1776.0,1.12644]
[1743695292687,2.58894,1776.1,1776.0,0.6864248]
[1743695292881,2.58894,1776.1,1776.0,1.8128648]
[1743695293490,0.00842933,1776.2,1776.1,1.12637]
[1743695293791,1.12644,1776.0,1775.9,4.33429]
[1743695294293,1.12644,1776.0,1775.9,5.02072447]
[1743695295386,1.12644,1776.1,1776.0,1.1264]
[1743695295690,1.13477933,1776.2,1776.1,1.12637]
[1743695295885,1.13477933,1776.2,1776.1,4.33417]
[1743695296191,1.13477933,1776.2,1776.1,5.02063925]
[1743695297381,0.00842933,1776.2,1776.1,5.02063925]
[1743695297588,0.00842933,1776.2,1776.1,7.52063925]
[1743695297795,0.00842933,1776.2,1776.1,5.02063925]
[1743695298097,1.13473933,1776.2,1776.1,5.02063925]
[1743695298595,1.13473933,1776.2,1776.0,6.95038]
[1743695298596,1.12637,1776.1,1776.0,6.95038]
[1743695298797,1.12637,1776.1,1776.0,7.63674916]
[1743695298995,1.12637,1776.1,1776.0,6.51036916]
[1743695299183,1.12644,1776.0,1775.9,3.2078]
[1743695299392,5.35944,1776.0,1775.9,3.89423441]
[1743695299891,5.35944,1776.0,1775.9,5.02073441]
[1743695300089,0.00842933,1776.2,1776.1,1.12637]
[1743695300295,0.00842933,1776.2,1776.1,5.02051983]
[1743695301192,0.00842933,1776.2,1776.1,7.52051983]
[1743695301497,0.00842933,1776.2,1776.1,7.52047564]
[1743695301892,0.00842933,1776.2,1776.1,8.25587564]
[1743695303204,0.00842933,1776.2,1776.1,8.25567483]
[1743695305098,0.00842933,1776.2,1776.1,8.2555731]
[1743695306698,1.12611,1776.6,1776.1,8.2555731]
[1743695306996,1.87633,1776.7,1776.6,1.12606]
[1743695307202,1.87633,1776.7,1776.6,1.81218078]
[1743695307501,1.87633,1776.7,1776.6,41.92606]
[1743695307697,1.12603,1776.7,1776.6,44.02570568]
[1743695308898,1.12603,1776.7,1776.6,43.33976]
[1743695309201,1.12603,1776.7,1776.6,44.02570547]
[1743695309406,1.12603,1776.7,1776.6,44.02557857]
[1743695310106,1.12603,1776.7,1776.6,43.33976]
[1743695310495,1.12606,1776.6,1776.5,3.9067]
[1743695310706,2.64776,1776.6,1776.5,3.2078]
[1743695310999,2.64776,1776.6,1776.5,4.33392]
[1743695311810,1.5217,1776.6,1776.5,5.01989131]
[1743695312306,2.64776,1776.6,1776.5,4.33392]
[1743695312706,2.64776,1776.6,1776.5,5.02014416]
[1743695313005,2.64776,1776.6,1776.5,4.33392]
[1743695313205,2.64776,1776.6,1776.5,5.02015558]
[1743695313522,1.13441933,1776.8,1776.7,1.12599]
[1743695313804,2.51361824,1776.8,1776.7,5.0203477]
[1743695314306,1.12606,1776.6,1776.5,4.33391]
[1743695314505,1.12606,1776.6,1776.5,4.96020503]
[1743695314706,1.88198,1776.9,1776.8,1.12593]
[1743695314909,2.13529891,1776.9,1776.8,5.02028029]
[1743695315205,3.26116891,1776.9,1776.8,5.02028029]
[1743695315405,2.13529891,1776.9,1776.8,5.02028029]
[1743695316407,3.26116891,1776.9,1776.8,0.68655029]
[1743695316605,2.13529891,1776.9,1776.8,5.02028029]
[1743695316907,0.00842933,1777.0,1776.9,1.12587]
[1743695317105,1.13422933,1777.0,1776.9,3.93542029]
[1743695317305,1.12587,1776.9,1776.8,3.21622933]
[1743695317607,1.4149,1776.9,1776.8,5.02801681]
[1743695318004,2.54077,1776.9,1776.8,5.02801681]
[1743695318503,2.54077,1776.9,1776.8,5.0280515]
[1743695318908,1.4149,1776.9,1776.8,5.0280515]
[1743695319408,2.54077,1776.9,1776.8,5.0280515]
[1743695319907,1.4149,1776.9,1776.8,5.0280515]
[1743695320207,0.00842933,1777.0,1776.9,1.12587]
[1743695320407,0.00842933,1777.0,1776.9,3.24799401]
[1743695320910,0.00842933,1777.0,1776.9,3.99679401]
[1743695322112,2.56922933,1777.0,1776.9,1.81149401]
[1743695322302,2.56922933,1777.0,1776.9,0.68562401]
[1743695322501,1.12587,1776.9,1776.8,3.21622933]
[1743695322702,2.53437,1776.9,1776.8,3.90146774]
[1743695323002,0.00842933,1777.0,1776.8,3.90146774]
[1743695323302,0.00842933,1777.0,1776.9,1.81113892]
[1743695323507,1.13422933,1777.0,1776.9,0.68526892]
[1743695323810,1.13422933,1777.0,1776.9,1.8110666]
[1743695324106,1.13422933,1777.0,1776.9,1.81106819]
[1743695324298,0.00842933,1777.0,1776.9,1.81106819]
[1743695324501,2.54272933,1777.0,1776.9,0.68519819]
[1743695324706,1.41692933,1777.0,1776.9,1.81113996]
[1743695324911,1.41692933,1777.0,1776.9,3.19753996]
[1743695325109,2.54272933,1777.0,1776.9,3.19753996]
[1743695325306,0.00842933,1777.0,1776.9,3.19753996]
[1743695325603,2.81392,1777.4,1776.9,3.19753996]
[1743695325604,1.3897,1777.4,1777.3,1.12561]
[1743695325808,0.7021,1777.6,1777.5,1.12549]
[1743695326013,9.1718,1778.6,1777.5,3.89292637]
[1743695326208,1.12499,1778.3,1778.0,3.2078]
[1743695326510,1.12499,1778.3,1778.2,3.2078]
[1743695326709,1.13341933,1778.3,1778.2,3.2078]
[1743695327010,1.13341933,1778.3,1778.1,40.8]
[1743695327011,1.12504,1778.2,1778.1,40.8]
[1743695327210,1.85964,1778.2,1778.1,40.8]
[1743695327409,1.12511,1778.1,1778.0,0.00842933]
[1743695327608,3.21241,1778.1,1778.0,0.00842933]
[1743695327811,3.21241,1778.1,1778.0,40.80842933]
[1743695328113,7.43741,1778.1,1778.0,40.80842933]
[1743695328410,7.43741,1778.1,1778.0,0.00842933]
[1743695330005,9.93741,1778.1,1778.0,0.00842933]
[1743695330212,9.93741,1778.1,1777.8,3.2078]
[1743695330213,1.12536,1777.7,1777.6,3.2078]
[1743695330710,1.12536,1777.7,1777.6,4.33322]
[1743695331012,3.29104,1777.8,1777.6,4.33322]
[1743695331207,1.4719,1777.7,1777.6,4.33322]
[1743695331609,2.59726,1777.7,1777.6,4.33322]
[1743695332110,2.59726,1777.7,1777.6,3.2078]
[1743695332309,2.1943,1777.7,1777.6,4.33322]
[1743695332511,2.1943,1777.7,1777.6,5.71732]
[1743695332713,3.31966,1777.7,1777.6,5.71732]
[1743695333416,2.81295,1778.0,1777.6,4.5919]
[1743695333606,1.4591,1777.8,1777.6,4.5919]
[1743695333802,1.4591,1777.8,1777.7,2.50946]
[1743695334007,1.1253,1777.8,1777.7,2.50941]
[1743695334208,1.83826,1777.9,1777.8,1.1253]
[1743695334407,1.83826,1777.9,1777.8,5.8098]
[1743695334608,1.12526,1777.9,1777.8,5.8098]
[1743695335316,2.5843,1778.0,1777.9,1.12523]
[1743695335517,1.4563,1778.1,1778.0,1.12517]
[1743695335815,2.58141,1778.1,1778.0,4.6845]
[1743695336213,4.05201,1778.1,1778.0,3.2078]
[1743695337507,1.12523,1778.0,1777.9,1.12523]
[1743695337706,1.12517,1778.0,1777.9,3.2078]
[1743695337912,2.59737,1778.0,1777.9,3.2078]
[1743695338112,2.59737,1778.0,1777.9,4.33303]
[1743695338313,2.59737,1778.0,1777.9,4.6335]
[1743695338914,2.59737,1778.0,1777.9,5.75873]
[1743695339312,2.59737,1778.0,1777.9,4.6335]
[1743695339510,2.59737,1778.0,1777.9,3.2078]
[1743695339710,2.59737,1778.0,1777.7,4.6838]
[1743695339711,1.12525,1777.9,1777.7,4.6838]
[1743695339916,2.59743,1777.9,1777.8,2.55095]
[1743695340118,2.59743,1777.9,1777.8,1.4257]
[1743695340312,2.59743,1777.9,1777.7,5.80911]
[1743695340313,2.59747,1777.9,1777.7,3.2078]
[1743695340520,2.59747,1777.9,1777.8,1.4579]
[1743695340718,2.59743,1777.9,1777.8,2.5832]
[1743695341113,1.4722,1777.9,1777.8,3.3376]
[1743695341319,2.59743,1777.9,1777.8,2.9377]
[1743695342316,2.58148,1778.1,1778.0,1.12517]
[1743695342614,2.6571,1778.2,1778.1,1.12511]
[1743695342823,1.13345933,1778.3,1778.2,1.12504]
[1743695343022,1.13345933,1778.3,1778.2,3.33734]
[1743695343223,1.13345933,1778.3,1778.2,2.2123]
[1743695343822,0.00842933,1778.3,1778.2,3.33734]
[1743695344018,1.13340933,1778.3,1778.2,3.33734]
[1743695344218,0.00842933,1778.3,1778.2,4.04424]
[1743695344820,1.13340933,1778.3,1778.2,4.04424]
[1743695345621,0.00842933,1778.3,1778.2,4.04424]
[1743695345820,0.00842933,1778.3,1778.2,4.72766985]
[1743695346126,0.00842933,1778.3,1778.2,7.22763947]
[1743695346623,5.62152,1779.4,1778.7,1.12473]
[1743695346624,6.01922,1779.0,1778.7,1.12473]
[1743695346826,1.495,1778.9,1778.8,3.2078]
[1743695347129,2.61965,1778.9,1778.8,3.2078]
[1743695347624,1.12473,1778.7,1778.6,3.9531]
[1743695348132,1.12473,1778.7,1778.6,5.07789]
[1743695348327,1.12473,1778.7,1778.6,6.47059]
[1743695348527,1.12473,1778.7,1778.6,5.3458]
[1743695348831,1.12473,1778.7,1778.6,6.47059]
[1743695349037,1.12473,1778.7,1778.6,3.2078]
[1743695349335,1.88433,1778.7,1778.6,3.2078]
[1743695350134,1.88433,1778.7,1778.6,4.33259]
[1743695350441,1.12473,1778.7,1778.6,4.33259]
[1743695350742,2.81154,1778.9,1778.8,1.12466]
[1743695350743,0.692,1778.9,1778.8,1.12466]
[1743695351035,0.692,1778.9,1778.8,4.33246]
[1743695351240,1.12465,1778.9,1778.8,4.33246]
[1743695351428,1.12465,1778.9,1778.8,6.45136]
[1743695352033,2.58615,1778.9,1778.8,6.45136]
[1743695352235,1.4615,1778.9,1778.8,6.45136]
[1743695352431,2.5861,1778.9,1778.8,6.45136]
[1743695352635,2.5861,1778.9,1778.8,3.24356]
[1743695352835,2.5861,1778.9,1778.8,2.1189]
[1743695353038,0.76512933,1779.0,1778.8,2.1189]
[1743695353039,0.00842933,1779.0,1778.8,2.1189]
[1743695353341,0.00842933,1779.0,1778.9,5.7636]
[1743695353535,0.00842933,1779.0,1778.9,6.4464281]
[1743695354135,0.00842933,1779.0,1778.9,8.9464281]
[1743695355438,0.00842933,1779.0,1778.9,8.94660269]
[1743695357341,0.00842933,1779.0,1778.9,6.44595088]
[1743695357746,1.13296933,1779.0,1778.9,5.7636]
[1743695357940,1.13296933,1779.0,1778.9,4.3324]
[1743695358343,0.00842933,1779.0,1778.9,4.3324]
[1743695358634,0.00842933,1779.0,1778.9,8.3104]
[1743695359035,2.81028,1779.7,1779.4,1.12425]
[1743695359236,1.12428,1779.4,1779.3,4.33213]
[1743695359442,1.12428,1779.4,1779.3,3.2078]
[1743695361951,1.12441,1779.2,1779.1,1.12446]
[1743695362248,2.60668,1779.3,1779.2,1.12441]
[1743695362456,2.60668,1779.3,1779.2,3.2078]
[1743695362657,1.12447,1779.1,1779.0,5.84874]
[1743695362845,1.12447,1779.1,1779.0,3.2078]
[1743695363252,2.60677,1779.1,1779.0,3.2078]
[1743695363453,2.60677,1779.1,1779.0,4.33234]
[1743695363750,2.60677,1779.1,1779.0,3.2078]
[1743695364743,2.60677,1779.1,1778.8,3.2078]
[1743695364744,1.1246,1778.9,1778.8,3.2078]
[1743695365445,1.8697,1778.9,1778.8,3.2078]
[1743695366158,1.12473,1778.7,1778.6,4.33253]
[1743695366344,3.31421,1778.8,1778.7,1.12473]
[1743695366544,1.12473,1778.7,1778.6,4.33256]
[1743695366750,2.56443,1778.7,1778.6,4.33256]
[1743695366951,1.4397,1778.7,1778.6,5.01563085]
[1743695367154,1.87447,1778.8,1778.7,1.12473]
[1743695367357,3.31417,1778.8,1778.7,1.12473]
[1743695368053,1.12473,1778.7,1778.6,5.71684]
[1743695368250,1.12473,1778.7,1778.6,6.40021854]
[1743695368453,2.56363,1778.7,1778.6,6.40021854]
[1743695368657,2.56363,1778.7,1778.6,6.40062301]
[1743695368859,0.7451,1778.9,1778.8,1.12466]
[1743695369051,1.86975,1778.9,1778.8,4.33246]
[1743695369355,1.12456,1779.0,1778.9,1.1246]
[1743695369559,1.12456,1779.0,1778.9,4.1165]
[1743695369855,1.12456,1779.0,1778.9,4.80064194]
[1743695370157,2.56346,1779.0,1778.9,4.80064194]
[1743695370458,2.56346,1779.0,1778.9,4.1165]
[1743695370655,2.56344,1779.0,1778.9,0.68420149]
[1743695370856,1.1246,1778.9,1778.8,4.33244]
[1743695371057,2.6229,1778.9,1778.8,5.01662814]
[1743695371255,2.6229,1778.9,1778.8,3.89198814]
[1743695371661,2.6229,1778.9,1778.8,5.01664814]
[1743695371858,2.6229,1778.9,1778.8,3.89198814]
[1743695372253,1.12473,1778.7,1778.6,3.2078]
[1743695372453,1.12473,1778.7,1778.6,3.89318531]
[1743695372853,3.36153,1778.7,1778.6,3.89318531]
[1743695373963,3.36153,1778.7,1778.6,5.01797531]
[1743695374565,1.4983,1778.7,1778.6,6.45447531]
[1743695374759,2.62303,1778.7,1778.6,6.45447531]